Workbook

Sheet Sheet1
A1: t= | B1: 0.128 | D1: dt= | E1: =0.0001 -> 0.0001
A2: t+dt=tp | B2: =t+dt -> 0.1281 | D2: deltat= | E2: =PI()/128 -> 0.02454369261
A3: t-dt=tm | B3: =t-dt -> 0.1279
C4: =EXP(-6*t)/10+EXP(-3*t)*(0.5*t*COS(5*t)+t*SIN(5*t)-0.05*SIN(5*t)) -> 0.1130872398 | F4: =EXP(-6*tp)/10+EXP(-3*tp)*(0.5*tp*COS(5*tp)+tp*SIN(5*tp)-0.05*SIN(5*tp)) -> 0.1131156766 | I4: =EXP(-6*tm)/10+EXP(-3*tm)*(0.5*tm*COS(5*tm)+tm*SIN(5*tm)-0.05*SIN(5*tm)) -> 0.1130587976 | L4: =(F4-I4)/2/dt -> 0.2843948498
B5: x(t)= | C5: =EXP(-6*t)*(-1/5*COS(5*t)+(t+1)/10) -> -0.02209243019 | E5: x(t+td)= | F5: =EXP(-6*tp)*(-1/5*COS(5*tp)+(tp+1)/10) -> -0.02204684312 | H5: x(t-td)= | I5: =EXP(-6*tm)*(-1/5*COS(5*tm)+(tm+1)/10) -> -0.02213804541 | K5: dx/dt= | L5: =(F5-I5)/2/dt -> 0.4560114477 | N5: Kırmızı kutular eşleşmeli.
C6: =EXP(-3*t)*(1.5*t*COS(5*t)+t/2*SIN(5*t)+0.05*COS(5*t)-0.05*SIN(5*t)) -> 0.1379072562 | F6: =EXP(-3*tp)*(1.5*tp*COS(5*tp)+tp/2*SIN(5*tp)+0.05*COS(5*tp)-0.05*SIN(5*tp)) -> 0.1379227327 | I6: =EXP(-3*tm)*(1.5*tm*COS(5*tm)+tm/2*SIN(5*tm)+0.05*COS(5*tm)-0.05*SIN(5*tm)) -> 0.1378916898 | L6: =(F6-I6)/2/dt -> 0.1552147764
C7: =EXP(-3*t)*(0.5*t*COS(5*t)+t*SIN(5*t)-0.05*SIN(5*t)) -> 0.06669323771 | F7: =EXP(-3*tp)*(0.5*tp*COS(5*tp)+tp*SIN(5*tp)-0.05*SIN(5*tp)) -> 0.06674950252 | I7: =EXP(-3*tm)*(0.5*tm*COS(5*tm)+tm*SIN(5*tm)-0.05*SIN(5*tm)) -> 0.06663695075 | L7: =(F7-I7)/2/dt -> 0.5627588791
A8: x(t)'de referans kullanma! | F8: Bu iki vektör makro çalışınca oluşuyor.
A9: Yeşil kutular doldurulup düğmeye basılmalı.
C11: -6 | D11: 0 | E11: 5 | F11: -2 | I11: =I14 -> 0.4067685833 | L11: =MMULT(C11:F14,C4:C7) -> -0.1223736332 | O11: =L11+I11 -> 0.28439495
B12: A= | C12: 1 | D12: -6 | E12: 0 | F12: -1 | H12: f= | I12: =EXP(-6*t)*SIN(5*t) -> 0.2770628657 | K12: Ax= | L12: 0.1789485832 | N12: Ax+f= | O12: =L12+I12 -> 0.4560114489
C13: 0 | D13: 0 | E13: 2 | F13: -10 | I13: =EXP(-3*t)*COS(5*t) -> 0.5463326283 | L13: -0.3911178646 | O13: =L13+I13 -> 0.1552147637
C14: 0 | D14: 0 | E14: 5 | F14: -8 | I14: =EXP(-3*t)*SIN(5*t) -> 0.4067685833 | L14: 0.1559903794 | O14: =L14+I14 -> 0.5627589627
B17: t | C17: x1 | D17: x2 | E17: x3 | F17: x4
B18: 0 | C18: =EXP(-6*tt)/10+EXP(-3*tt)*(0.5*tt*COS(5*tt)+tt*SIN(5*tt)-0.05*SIN(5*tt)) -> 0.1 | D18: =EXP(-6*tt)*(-1/5*COS(5*tt)+(tt+1)/10) -> -0.1 | E18: =EXP(-3*tt)*(1.5*tt*COS(5*tt)+tt/2*SIN(5*tt)+0.05*COS(5*tt)-0.05*SIN(5*tt)) -> 0.05 | F18: =EXP(-3*tt)*(0.5*tt*COS(5*tt)+tt*SIN(5*tt)-0.05*SIN(5*tt)) -> 0
B19: =B18+deltat -> 0.02454369261 | C19: =EXP(-6*tt)/10+EXP(-3*tt)*(0.5*tt*COS(5*tt)+tt*SIN(5*tt)-0.05*SIN(5*tt)) -> 0.09472682798 | D19: =EXP(-6*tt)*(-1/5*COS(5*tt)+(tt+1)/10) -> -0.08289034802 | E19: =EXP(-3*tt)*(1.5*tt*COS(5*tt)+tt/2*SIN(5*tt)+0.05*COS(5*tt)-0.05*SIN(5*tt)) -> 0.07575584174 | F19: =EXP(-3*tt)*(0.5*tt*COS(5*tt)+tt*SIN(5*tt)-0.05*SIN(5*tt)) -> 0.008420059015
B20: 0.04908738521 | C20: =EXP(-6*tt)/10+EXP(-3*tt)*(0.5*tt*COS(5*tt)+tt*SIN(5*tt)-0.05*SIN(5*tt)) -> 0.09484524483 | D20: =EXP(-6*tt)*(-1/5*COS(5*tt)+(tt+1)/10) -> -0.06636747489 | E20: =EXP(-3*tt)*(1.5*tt*COS(5*tt)+tt/2*SIN(5*tt)+0.05*COS(5*tt)-0.05*SIN(5*tt)) -> 0.09816586379 | F20: =EXP(-3*tt)*(0.5*tt*COS(5*tt)+tt*SIN(5*tt)-0.05*SIN(5*tt)) -> 0.02035666113
B21: 0.07363107782 | C21: =EXP(-6*tt)/10+EXP(-3*tt)*(0.5*tt*COS(5*tt)+tt*SIN(5*tt)-0.05*SIN(5*tt)) -> 0.09864859586 | D21: =EXP(-6*tt)*(-1/5*COS(5*tt)+(tt+1)/10) -> -0.05093943397 | E21: =EXP(-3*tt)*(1.5*tt*COS(5*tt)+tt/2*SIN(5*tt)+0.05*COS(5*tt)-0.05*SIN(5*tt)) -> 0.1162216543 | F21: =EXP(-3*tt)*(0.5*tt*COS(5*tt)+tt*SIN(5*tt)-0.05*SIN(5*tt)) -> 0.03435990602
B22: 0.09817477042 | C22: =EXP(-6*tt)/10+EXP(-3*tt)*(0.5*tt*COS(5*tt)+tt*SIN(5*tt)-0.05*SIN(5*tt)) -> 0.1046484318 | D22: =EXP(-6*tt)*(-1/5*COS(5*tt)+(tt+1)/10) -> -0.03693490242 | E22: =EXP(-3*tt)*(1.5*tt*COS(5*tt)+tt/2*SIN(5*tt)+0.05*COS(5*tt)-0.05*SIN(5*tt)) -> 0.1292671053 | F22: =EXP(-3*tt)*(0.5*tt*COS(5*tt)+tt*SIN(5*tt)-0.05*SIN(5*tt)) -> 0.04916294078
B23: 0.122718463 | C23: =EXP(-6*tt)/10+EXP(-3*tt)*(0.5*tt*COS(5*tt)+tt*SIN(5*tt)-0.05*SIN(5*tt)) -> 0.1115790997 | D23: =EXP(-6*tt)*(-1/5*COS(5*tt)+(tt+1)/10) -> -0.02454012527 | E23: =EXP(-3*tt)*(1.5*tt*COS(5*tt)+tt/2*SIN(5*tt)+0.05*COS(5*tt)-0.05*SIN(5*tt)) -> 0.1369619303 | F23: =EXP(-3*tt)*(0.5*tt*COS(5*tt)+tt*SIN(5*tt)-0.05*SIN(5*tt)) -> 0.06369136515
B24: 0.1472621556 | C24: =EXP(-6*tt)/10+EXP(-3*tt)*(0.5*tt*COS(5*tt)+tt*SIN(5*tt)-0.05*SIN(5*tt)) -> 0.1183959743 | D24: =EXP(-6*tt)*(-1/5*COS(5*tt)+(tt+1)/10) -> -0.0138307944 | E24: =EXP(-3*tt)*(1.5*tt*COS(5*tt)+tt/2*SIN(5*tt)+0.05*COS(5*tt)-0.05*SIN(5*tt)) -> 0.1392417856 | F24: =EXP(-3*tt)*(0.5*tt*COS(5*tt)+tt*SIN(5*tt)-0.05*SIN(5*tt)) -> 0.07706561793
B25: 0.1718058482 | C25: =EXP(-6*tt)/10+EXP(-3*tt)*(0.5*tt*COS(5*tt)+tt*SIN(5*tt)-0.05*SIN(5*tt)) -> 0.1242682813 | D25: =EXP(-6*tt)*(-1/5*COS(5*tt)+(tt+1)/10) -> -0.004799156453 | E25: =EXP(-3*tt)*(1.5*tt*COS(5*tt)+tt/2*SIN(5*tt)+0.05*COS(5*tt)-0.05*SIN(5*tt)) -> 0.1362766049 | F25: =EXP(-3*tt)*(0.5*tt*COS(5*tt)+tt*SIN(5*tt)-0.05*SIN(5*tt)) -> 0.08859738611
B26: 0.1963495408 | C26: =EXP(-6*tt)/10+EXP(-3*tt)*(0.5*tt*COS(5*tt)+tt*SIN(5*tt)-0.05*SIN(5*tt)) -> 0.1285674659 | D26: =EXP(-6*tt)*(-1/5*COS(5*tt)+(tt+1)/10) -> 0.002623280416 | E26: =EXP(-3*tt)*(1.5*tt*COS(5*tt)+tt/2*SIN(5*tt)+0.05*COS(5*tt)-0.05*SIN(5*tt)) -> 0.1284285538 | F26: =EXP(-3*tt)*(0.5*tt*COS(5*tt)+tt*SIN(5*tt)-0.05*SIN(5*tt)) -> 0.0977810688
B27: 0.2208932335 | C27: =EXP(-6*tt)/10+EXP(-3*tt)*(0.5*tt*COS(5*tt)+tt*SIN(5*tt)-0.05*SIN(5*tt)) -> 0.1308520399 | D27: =EXP(-6*tt)*(-1/5*COS(5*tt)+(tt+1)/10) -> 0.008547026686 | E27: =EXP(-3*tt)*(1.5*tt*COS(5*tt)+tt/2*SIN(5*tt)+0.05*COS(5*tt)-0.05*SIN(5*tt)) -> 0.1162108088 | F27: =EXP(-3*tt)*(0.5*tt*COS(5*tt)+tt*SIN(5*tt)-0.05*SIN(5*tt)) -> 0.1042812953
B28: 0.2454369261 | C28: =EXP(-6*tt)/10+EXP(-3*tt)*(0.5*tt*COS(5*tt)+tt*SIN(5*tt)-0.05*SIN(5*tt)) -> 0.1308497951 | D28: =EXP(-6*tt)*(-1/5*COS(5*tt)+(tt+1)/10) -> 0.01310944412 | E28: =EXP(-3*tt)*(1.5*tt*COS(5*tt)+tt/2*SIN(5*tt)+0.05*COS(5*tt)-0.05*SIN(5*tt)) -> 0.1002481572 | F28: =EXP(-3*tt)*(0.5*tt*COS(5*tt)+tt*SIN(5*tt)-0.05*SIN(5*tt)) -> 0.1079174439
B29: 0.2699806187 | C29: =EXP(-6*tt)/10+EXP(-3*tt)*(0.5*tt*COS(5*tt)+tt*SIN(5*tt)-0.05*SIN(5*tt)) -> 0.1284382119 | D29: =EXP(-6*tt)*(-1/5*COS(5*tt)+(tt+1)/10) -> 0.01646269545 | E29: =EXP(-3*tt)*(1.5*tt*COS(5*tt)+tt/2*SIN(5*tt)+0.05*COS(5*tt)-0.05*SIN(5*tt)) -> 0.08124021956 | F29: =EXP(-3*tt)*(0.5*tt*COS(5*tt)+tt*SIN(5*tt)-0.05*SIN(5*tt)) -> 0.1086460405
B30: 0.2945243113 | C30: =EXP(-6*tt)/10+EXP(-3*tt)*(0.5*tt*COS(5*tt)+tt*SIN(5*tt)-0.05*SIN(5*tt)) -> 0.1236238208 | D30: =EXP(-6*tt)*(-1/5*COS(5*tt)+(tt+1)/10) -> 0.0187643887 | E30: =EXP(-3*tt)*(1.5*tt*COS(5*tt)+tt/2*SIN(5*tt)+0.05*COS(5*tt)-0.05*SIN(5*tt)) -> 0.05992790705 | F30: =EXP(-3*tt)*(0.5*tt*COS(5*tt)+tt*SIN(5*tt)-0.05*SIN(5*tt)) -> 0.1065418372
B31: 0.3190680039 | C31: =EXP(-6*tt)/10+EXP(-3*tt)*(0.5*tt*COS(5*tt)+tt*SIN(5*tt)-0.05*SIN(5*tt)) -> 0.1165211901 | D31: =EXP(-6*tt)*(-1/5*COS(5*tt)+(tt+1)/10) -> 0.02017051656 | E31: =EXP(-3*tt)*(1.5*tt*COS(5*tt)+tt/2*SIN(5*tt)+0.05*COS(5*tt)-0.05*SIN(5*tt)) -> 0.03706354886 | F31: =EXP(-3*tt)*(0.5*tt*COS(5*tt)+tt*SIN(5*tt)-0.05*SIN(5*tt)) -> 0.1017782819
B32: 0.3436116965 | C32: =EXP(-6*tt)/10+EXP(-3*tt)*(0.5*tt*COS(5*tt)+tt*SIN(5*tt)-0.05*SIN(5*tt)) -> 0.107332131 | D32: =EXP(-6*tt)*(-1/5*COS(5*tt)+(tt+1)/10) -> 0.02083032133 | E32: =EXP(-3*tt)*(1.5*tt*COS(5*tt)+tt/2*SIN(5*tt)+0.05*COS(5*tt)-0.05*SIN(5*tt)) -> 0.0133849681 | F32: =EXP(-3*tt)*(0.5*tt*COS(5*tt)+tt*SIN(5*tt)-0.05*SIN(5*tt)) -> 0.0946080033
B33: 0.3681553891 | C33: =EXP(-6*tt)/10+EXP(-3*tt)*(0.5*tt*COS(5*tt)+tt*SIN(5*tt)-0.05*SIN(5*tt)) -> 0.09632561911 | D33: =EXP(-6*tt)*(-1/5*COS(5*tt)+(tt+1)/10) -> 0.02088274973 | E33: =EXP(-3*tt)*(1.5*tt*COS(5*tt)+tt/2*SIN(5*tt)+0.05*COS(5*tt)-0.05*SIN(5*tt)) -> -0.01040636158 | F33: =EXP(-3*tt)*(0.5*tt*COS(5*tt)+tt*SIN(5*tt)-0.05*SIN(5*tt)) -> 0.08534383565
B34: 0.3926990817 | C34: =EXP(-6*tt)/10+EXP(-3*tt)*(0.5*tt*COS(5*tt)+tt*SIN(5*tt)-0.05*SIN(5*tt)) -> 0.0838188442 | D34: =EXP(-6*tt)*(-1/5*COS(5*tt)+(tt+1)/10) -> 0.02045419756 | E34: =EXP(-3*tt)*(1.5*tt*COS(5*tt)+tt/2*SIN(5*tt)+0.05*COS(5*tt)-0.05*SIN(5*tt)) -> -0.03366307037 | F34: =EXP(-3*tt)*(0.5*tt*COS(5*tt)+tt*SIN(5*tt)-0.05*SIN(5*tt)) -> 0.07434082171 | H34: X matrisinde hücreye referans kullanmayın. Zira makro çalışınca alttaki X(t+-dt) matrisleri doldurulacak.
B35: 0.4172427743 | C35: =EXP(-6*tt)/10+EXP(-3*tt)*(0.5*tt*COS(5*tt)+tt*SIN(5*tt)-0.05*SIN(5*tt)) -> 0.07015971321 | D35: =EXP(-6*tt)*(-1/5*COS(5*tt)+(tt+1)/10) -> 0.01965728077 | E35: =EXP(-3*tt)*(1.5*tt*COS(5*tt)+tt/2*SIN(5*tt)+0.05*COS(5*tt)-0.05*SIN(5*tt)) -> -0.05580565719 | F35: =EXP(-3*tt)*(0.5*tt*COS(5*tt)+tt*SIN(5*tt)-0.05*SIN(5*tt)) -> 0.06197953824 | I35: 0 | J35: =EXP(-6*t) -> 0.4639400211 | K35: =EXP(-3*t)*COS(5*t) -> 0.5463326283 | L35: =EXP(-3*t)*SIN(5*t) -> 0.4067685833 | O35: =-EXP(6*t)*(1+t) -> -2.431348771 | P35: =O36 -> 2.155451038 | Q35: =0 -> 0 | R35: =-O35 -> 2.431348771
B36: 0.4417864669 | C36: =EXP(-6*tt)/10+EXP(-3*tt)*(0.5*tt*COS(5*tt)+tt*SIN(5*tt)-0.05*SIN(5*tt)) -> 0.05571105037 | D36: =EXP(-6*tt)*(-1/5*COS(5*tt)+(tt+1)/10) -> 0.01859040437 | E36: =EXP(-3*tt)*(1.5*tt*COS(5*tt)+tt/2*SIN(5*tt)+0.05*COS(5*tt)-0.05*SIN(5*tt)) -> -0.07633245373 | F36: =EXP(-3*tt)*(0.5*tt*COS(5*tt)+tt*SIN(5*tt)-0.05*SIN(5*tt)) -> 0.04865100566 | H36: X= | I36: =EXP(-6*t) -> 0.4639400211 | J36: =EXP(-6*t)*(1+t) -> 0.5233243438 | K36: 0 | L36: 0 | N36: X-1= | O36: =EXP(6*t) -> 2.155451038 | P36: 0 | Q36: =0 -> 0 | R36: =-O36 -> -2.155451038
B37: 0.4663301595 | C37: =EXP(-6*tt)/10+EXP(-3*tt)*(0.5*tt*COS(5*tt)+tt*SIN(5*tt)-0.05*SIN(5*tt)) -> 0.04083666046 | D37: =EXP(-6*tt)*(-1/5*COS(5*tt)+(tt+1)/10) -> 0.01733793434 | E37: =EXP(-3*tt)*(1.5*tt*COS(5*tt)+tt/2*SIN(5*tt)+0.05*COS(5*tt)-0.05*SIN(5*tt)) -> -0.09482604756 | F37: =EXP(-3*tt)*(0.5*tt*COS(5*tt)+tt*SIN(5*tt)-0.05*SIN(5*tt)) -> 0.03474336398 | I37: 0 | J37: 0 | K37: =EXP(-3*t)*(COS(5*t)-SIN(5*t)) -> 0.139564045 | L37: =EXP(-3*t)*(COS(5*t)+SIN(5*t)) -> 0.9531012116 | O37: 0 | P37: 0 | Q37: =-EXP(3*t)*SIN(5*t) -> -0.876769765 | R37: =Q38-Q37 -> 2.054362996
B38: 0.4908738521 | C38: =EXP(-6*tt)/10+EXP(-3*tt)*(0.5*tt*COS(5*tt)+tt*SIN(5*tt)-0.05*SIN(5*tt)) -> 0.02588935237 | D38: =EXP(-6*tt)*(-1/5*COS(5*tt)+(tt+1)/10) -> 0.0159708088 | E38: =EXP(-3*tt)*(1.5*tt*COS(5*tt)+tt/2*SIN(5*tt)+0.05*COS(5*tt)-0.05*SIN(5*tt)) -> -0.1109564792 | F38: =EXP(-3*tt)*(0.5*tt*COS(5*tt)+tt*SIN(5*tt)-0.05*SIN(5*tt)) -> 0.02063042505 | I38: 0 | J38: 0 | K38: =EXP(-3*t)*COS(5*t) -> 0.5463326283 | L38: =EXP(-3*t)*SIN(5*t) -> 0.4067685833 | O38: 0 | P38: 0 | Q38: =EXP(3*t)*COS(5*t) -> 1.177593231 | R38: =-Q37-Q38 -> -0.3008234657
B39: 0.5154175447 | C39: =EXP(-6*tt)/10+EXP(-3*tt)*(0.5*tt*COS(5*tt)+tt*SIN(5*tt)-0.05*SIN(5*tt)) -> 0.0112009574 | D39: =EXP(-6*tt)*(-1/5*COS(5*tt)+(tt+1)/10) -> 0.01454745272 | E39: =EXP(-3*tt)*(1.5*tt*COS(5*tt)+tt/2*SIN(5*tt)+0.05*COS(5*tt)-0.05*SIN(5*tt)) -> -0.1244815665 | F39: =EXP(-3*tt)*(0.5*tt*COS(5*tt)+tt*SIN(5*tt)-0.05*SIN(5*tt)) -> 0.006662147152
B40: 0.5399612373 | C40: =EXP(-6*tt)/10+EXP(-3*tt)*(0.5*tt*COS(5*tt)+tt*SIN(5*tt)-0.05*SIN(5*tt)) -> -0.002925677713 | D40: =EXP(-6*tt)*(-1/5*COS(5*tt)+(tt+1)/10) -> 0.01311488626 | E40: =EXP(-3*tt)*(1.5*tt*COS(5*tt)+tt/2*SIN(5*tt)+0.05*COS(5*tt)-0.05*SIN(5*tt)) -> -0.1352447356 | F40: =EXP(-3*tt)*(0.5*tt*COS(5*tt)+tt*SIN(5*tt)-0.05*SIN(5*tt)) -> -0.006842978187 | I40: =MMULT(I35:L38,O35:R38) -> 1 | J40: 0 | K40: 5.551115123e-17 | L40: -1.804112415e-16 | N40: Bu X ve X-1 matrisleri sağlama yapmak gerekiyorsa kullanılmalı.
B41: 0.5645049299 | C41: =EXP(-6*tt)/10+EXP(-3*tt)*(0.5*tt*COS(5*tt)+tt*SIN(5*tt)-0.05*SIN(5*tt)) -> -0.01622278962 | D41: =EXP(-6*tt)*(-1/5*COS(5*tt)+(tt+1)/10) -> 0.01170993868 | E41: =EXP(-3*tt)*(1.5*tt*COS(5*tt)+tt/2*SIN(5*tt)+0.05*COS(5*tt)-0.05*SIN(5*tt)) -> -0.1431707464 | F41: =EXP(-3*tt)*(0.5*tt*COS(5*tt)+tt*SIN(5*tt)-0.05*SIN(5*tt)) -> -0.01960368509 | H41: X.X-1= | I41: 2.220446049e-16 | J41: 1 | K41: 0 | L41: -2.220446049e-16 | N41: Birim matris çıkmalı.
B42: 0.5890486225 | C42: =EXP(-6*tt)/10+EXP(-3*tt)*(0.5*tt*COS(5*tt)+tt*SIN(5*tt)-0.05*SIN(5*tt)) -> -0.02846199363 | D42: =EXP(-6*tt)*(-1/5*COS(5*tt)+(tt+1)/10) -> 0.01036049957 | E42: =EXP(-3*tt)*(1.5*tt*COS(5*tt)+tt/2*SIN(5*tt)+0.05*COS(5*tt)-0.05*SIN(5*tt)) -> -0.1482597057 | F42: =EXP(-3*tt)*(0.5*tt*COS(5*tt)+tt*SIN(5*tt)-0.05*SIN(5*tt)) -> -0.03137993527 | I42: 0 | J42: 0 | K42: 1 | L42: -1.110223025e-16
B43: 0.6135923152 | C43: =EXP(-6*tt)/10+EXP(-3*tt)*(0.5*tt*COS(5*tt)+tt*SIN(5*tt)-0.05*SIN(5*tt)) -> -0.03945691078 | D43: =EXP(-6*tt)*(-1/5*COS(5*tt)+(tt+1)/10) -> 0.009086755452 | E43: =EXP(-3*tt)*(1.5*tt*COS(5*tt)+tt/2*SIN(5*tt)+0.05*COS(5*tt)-0.05*SIN(5*tt)) -> -0.1505797462 | F43: =EXP(-3*tt)*(0.5*tt*COS(5*tt)+tt*SIN(5*tt)-0.05*SIN(5*tt)) -> -0.04197529193 | I43: 0 | J43: 0 | K43: 5.551115123e-17 | L43: 1
B44: 0.6381360078 | C44: =EXP(-6*tt)/10+EXP(-3*tt)*(0.5*tt*COS(5*tt)+tt*SIN(5*tt)-0.05*SIN(5*tt)) -> -0.04906428482 | D44: =EXP(-6*tt)*(-1/5*COS(5*tt)+(tt+1)/10) -> 0.007902373904 | E44: =EXP(-3*tt)*(1.5*tt*COS(5*tt)+tt/2*SIN(5*tt)+0.05*COS(5*tt)-0.05*SIN(5*tt)) -> -0.1502587366 | F44: =EXP(-3*tt)*(0.5*tt*COS(5*tt)+tt*SIN(5*tt)-0.05*SIN(5*tt)) -> -0.05123781822
B45: 0.6626797004 | C45: =EXP(-6*tt)/10+EXP(-3*tt)*(0.5*tt*COS(5*tt)+tt*SIN(5*tt)-0.05*SIN(5*tt)) -> -0.0571837632 | D45: =EXP(-6*tt)*(-1/5*COS(5*tt)+(tt+1)/10) -> 0.006815608951 | E45: =EXP(-3*tt)*(1.5*tt*COS(5*tt)+tt/2*SIN(5*tt)+0.05*COS(5*tt)-0.05*SIN(5*tt)) -> -0.1474753604 | F45: =EXP(-3*tt)*(0.5*tt*COS(5*tt)+tt*SIN(5*tt)-0.05*SIN(5*tt)) -> -0.05905966966 | I45: Bu iki matris makro çalıştırılınca oluşuyor:
B46: 0.687223393 | C46: =EXP(-6*tt)/10+EXP(-3*tt)*(0.5*tt*COS(5*tt)+tt*SIN(5*tt)-0.05*SIN(5*tt)) -> -0.06375652583 | D46: =EXP(-6*tt)*(-1/5*COS(5*tt)+(tt+1)/10) -> 0.00583031081 | E46: =EXP(-3*tt)*(1.5*tt*COS(5*tt)+tt/2*SIN(5*tt)+0.05*COS(5*tt)-0.05*SIN(5*tt)) -> -0.1424498755 | F46: =EXP(-3*tt)*(0.5*tt*COS(5*tt)+tt*SIN(5*tt)-0.05*SIN(5*tt)) -> -0.06537556007 | I46: 0 | J46: =EXP(-6*tp) -> 0.4636617406 | K46: =EXP(-3*tp)*COS(5*tp) -> 0.5459653615 | L46: =EXP(-3*tp)*SIN(5*tp) -> 0.4069196045 | O46: 0 | P46: =EXP(-6*tm) -> 0.4642184686 | Q46: =EXP(-3*tm)*COS(5*tm) -> 0.5466999297 | R46: =EXP(-3*tm)*SIN(5*tm) -> 0.406617333
B47: 0.7117670856 | C47: =EXP(-6*tt)/10+EXP(-3*tt)*(0.5*tt*COS(5*tt)+tt*SIN(5*tt)-0.05*SIN(5*tt)) -> -0.06876294881 | D47: =EXP(-6*tt)*(-1/5*COS(5*tt)+(tt+1)/10) -> 0.004946830702 | E47: =EXP(-3*tt)*(1.5*tt*COS(5*tt)+tt/2*SIN(5*tt)+0.05*COS(5*tt)-0.05*SIN(5*tt)) -> -0.1354348295 | F47: =EXP(-3*tt)*(0.5*tt*COS(5*tt)+tt*SIN(5*tt)-0.05*SIN(5*tt)) -> -0.07016028495 | H47: X(t+dt)= | I47: =EXP(-6*tp) -> 0.4636617406 | J47: =EXP(-6*tp)*(1+tp) -> 0.5230568095 | K47: 0 | L47: 0 | N47: X(t-dt)= | O47: =EXP(-6*tm) -> 0.4642184686 | P47: =EXP(-6*tm)*(1+tm) -> 0.5235920108 | Q47: 0 | R47: 0
B48: 0.7363107782 | C48: =EXP(-6*tt)/10+EXP(-3*tt)*(0.5*tt*COS(5*tt)+tt*SIN(5*tt)-0.05*SIN(5*tt)) -> -0.07221948955 | D48: =EXP(-6*tt)*(-1/5*COS(5*tt)+(tt+1)/10) -> 0.004162817297 | E48: =EXP(-3*tt)*(1.5*tt*COS(5*tt)+tt/2*SIN(5*tt)+0.05*COS(5*tt)-0.05*SIN(5*tt)) -> -0.1267059748 | F48: =EXP(-3*tt)*(0.5*tt*COS(5*tt)+tt*SIN(5*tt)-0.05*SIN(5*tt)) -> -0.07342548523 | I48: 0 | J48: 0 | K48: =EXP(-3*tp)*(COS(5*tp)-SIN(5*tp)) -> 0.139045757 | L48: =EXP(-3*tp)*(COS(5*tp)+SIN(5*tp)) -> 0.9528849661 | O48: 0 | P48: 0 | Q48: =EXP(-3*tm)*(COS(5*tm)-SIN(5*tm)) -> 0.1400825966 | R48: =EXP(-3*tm)*(COS(5*tm)+SIN(5*tm)) -> 0.9533172627
B49: 0.7608544708 | C49: =EXP(-6*tt)/10+EXP(-3*tt)*(0.5*tt*COS(5*tt)+tt*SIN(5*tt)-0.05*SIN(5*tt)) -> -0.0741749736 | D49: =EXP(-6*tt)*(-1/5*COS(5*tt)+(tt+1)/10) -> 0.003473905846 | E49: =EXP(-3*tt)*(1.5*tt*COS(5*tt)+tt/2*SIN(5*tt)+0.05*COS(5*tt)-0.05*SIN(5*tt)) -> -0.1165535877 | F49: =EXP(-3*tt)*(0.5*tt*COS(5*tt)+tt*SIN(5*tt)-0.05*SIN(5*tt)) -> -0.0752158295 | I49: 0 | J49: 0 | K49: =EXP(-3*tp)*COS(5*tp) -> 0.5459653615 | L49: =EXP(-3*tp)*SIN(5*tp) -> 0.4069196045 | O49: 0 | P49: 0 | Q49: =EXP(-3*tm)*COS(5*tm) -> 0.5466999297 | R49: =EXP(-3*tm)*SIN(5*tm) -> 0.406617333
B50: 0.7853981634 | C50: =EXP(-6*tt)/10+EXP(-3*tt)*(0.5*tt*COS(5*tt)+tt*SIN(5*tt)-0.05*SIN(5*tt)) -> -0.07470645463 | D50: =EXP(-6*tt)*(-1/5*COS(5*tt)+(tt+1)/10) -> 0.002874304329 | E50: =EXP(-3*tt)*(1.5*tt*COS(5*tt)+tt/2*SIN(5*tt)+0.05*COS(5*tt)-0.05*SIN(5*tt)) -> -0.105274361 | F50: =EXP(-3*tt)*(0.5*tt*COS(5*tt)+tt*SIN(5*tt)-0.05*SIN(5*tt)) -> -0.07560478373
B51: =B50+deltat -> 0.809941856 | C51: =EXP(-6*tt)/10+EXP(-3*tt)*(0.5*tt*COS(5*tt)+tt*SIN(5*tt)-0.05*SIN(5*tt)) -> -0.07391480685 | D51: =EXP(-6*tt)*(-1/5*COS(5*tt)+(tt+1)/10) -> 0.002357283254 | E51: =EXP(-3*tt)*(1.5*tt*COS(5*tt)+tt/2*SIN(5*tt)+0.05*COS(5*tt)-0.05*SIN(5*tt)) -> -0.09316400454 | F51: =EXP(-3*tt)*(0.5*tt*COS(5*tt)+tt*SIN(5*tt)-0.05*SIN(5*tt)) -> -0.07469012568 | I51: =(I46-O46)/2/$E$1 -> 0 | J51: -2.783640294 | K51: -3.672840628 | L51: 1.511357535 | O51: =MMULT(C11:F14,I35:L38) -> 0 | P51: -2.783640127 | Q51: -3.672840801 | R51: 1.511357392
B52: 0.8344855486 | C52: =EXP(-6*tt)/10+EXP(-3*tt)*(0.5*tt*COS(5*tt)+tt*SIN(5*tt)-0.05*SIN(5*tt)) -> -0.0719201948 | D52: =EXP(-6*tt)*(-1/5*COS(5*tt)+(tt+1)/10) -> 0.001915577222 | E52: =EXP(-3*tt)*(1.5*tt*COS(5*tt)+tt/2*SIN(5*tt)+0.05*COS(5*tt)-0.05*SIN(5*tt)) -> -0.08051065118 | F52: =EXP(-3*tt)*(0.5*tt*COS(5*tt)+tt*SIN(5*tt)-0.05*SIN(5*tt)) -> -0.07258934743 | H52: dX/dt= | I52: -2.783640294 | J52: -2.676006147 | K52: 0 | L52: 0 | N52: A.X= | O52: -2.783640127 | P52: -2.676006042 | Q52: 0 | R52: 0
B53: 0.8590292412 | C53: =EXP(-6*tt)/10+EXP(-3*tt)*(0.5*tt*COS(5*tt)+tt*SIN(5*tt)-0.05*SIN(5*tt)) -> -0.06885754962 | D53: =EXP(-6*tt)*(-1/5*COS(5*tt)+(tt+1)/10) -> 0.0015417072 | E53: =EXP(-3*tt)*(1.5*tt*COS(5*tt)+tt/2*SIN(5*tt)+0.05*COS(5*tt)-0.05*SIN(5*tt)) -> -0.0675891359 | F53: =EXP(-3*tt)*(0.5*tt*COS(5*tt)+tt*SIN(5*tt)-0.05*SIN(5*tt)) -> -0.06943507363 | I53: 0 | J53: 0 | K53: -5.184198163 | L53: -2.161483093 | O53: 0 | P53: 0 | Q53: -5.184198193 | R53: -2.16148341
B54: 0.8835729338 | C54: =EXP(-6*tt)/10+EXP(-3*tt)*(0.5*tt*COS(5*tt)+tt*SIN(5*tt)-0.05*SIN(5*tt)) -> -0.06487216408 | D54: =EXP(-6*tt)*(-1/5*COS(5*tt)+(tt+1)/10) -> 0.001228232782 | E54: =EXP(-3*tt)*(1.5*tt*COS(5*tt)+tt/2*SIN(5*tt)+0.05*COS(5*tt)-0.05*SIN(5*tt)) -> -0.05465618566 | F54: =EXP(-3*tt)*(0.5*tt*COS(5*tt)+tt*SIN(5*tt)-0.05*SIN(5*tt)) -> -0.06537060639 | I54: 0 | J54: 0 | K54: -3.672840628 | L54: 1.511357535 | O54: 0 | P54: 0 | Q54: -3.672840801 | R54: 1.511357392
B55: 0.9081166264 | C55: =EXP(-6*tt)/10+EXP(-3*tt)*(0.5*tt*COS(5*tt)+tt*SIN(5*tt)-0.05*SIN(5*tt)) -> -0.06011550141 | D55: =EXP(-6*tt)*(-1/5*COS(5*tt)+(tt+1)/10) -> 0.0009679436568 | E55: =EXP(-3*tt)*(1.5*tt*COS(5*tt)+tt/2*SIN(5*tt)+0.05*COS(5*tt)-0.05*SIN(5*tt)) -> -0.0419465303 | F55: =EXP(-3*tt)*(0.5*tt*COS(5*tt)+tt*SIN(5*tt)-0.05*SIN(5*tt)) -> -0.06054569087
B56: 0.932660319 | C56: =EXP(-6*tt)/10+EXP(-3*tt)*(0.5*tt*COS(5*tt)+tt*SIN(5*tt)-0.05*SIN(5*tt)) -> -0.05474129544 | D56: =EXP(-6*tt)*(-1/5*COS(5*tt)+(tt+1)/10) -> 0.0007539991356 | E56: =EXP(-3*tt)*(1.5*tt*COS(5*tt)+tt/2*SIN(5*tt)+0.05*COS(5*tt)-0.05*SIN(5*tt)) -> -0.02966992186 | F56: =EXP(-3*tt)*(0.5*tt*COS(5*tt)+tt*SIN(5*tt)-0.05*SIN(5*tt)) -> -0.05511257806 | L56: Homojen kısmın kontrolü için son iki kırmızı matris eşleşmeli.
B57: 0.9572040116 | C57: =EXP(-6*tt)/10+EXP(-3*tt)*(0.5*tt*COS(5*tt)+tt*SIN(5*tt)-0.05*SIN(5*tt)) -> -0.04890200303 | D57: =EXP(-6*tt)*(-1/5*COS(5*tt)+(tt+1)/10) -> 0.0005800240755 | E57: =EXP(-3*tt)*(1.5*tt*COS(5*tt)+tt/2*SIN(5*tt)+0.05*COS(5*tt)-0.05*SIN(5*tt)) -> -0.01800902958 | F57: =EXP(-3*tt)*(0.5*tt*COS(5*tt)+tt*SIN(5*tt)-0.05*SIN(5*tt)) -> -0.04922244506
B58: 0.9817477042 | C58: =EXP(-6*tt)/10+EXP(-3*tt)*(0.5*tt*COS(5*tt)+tt*SIN(5*tt)-0.05*SIN(5*tt)) -> -0.04274565339 | D58: =EXP(-6*tt)*(-1/5*COS(5*tt)+(tt+1)/10) -> 0.0004401688234 | E58: =EXP(-3*tt)*(1.5*tt*COS(5*tt)+tt/2*SIN(5*tt)+0.05*COS(5*tt)-0.05*SIN(5*tt)) -> -0.007118160848 | F58: =EXP(-3*tt)*(0.5*tt*COS(5*tt)+tt*SIN(5*tt)-0.05*SIN(5*tt)) -> -0.04302221656
B59: 1.006291397 | C59: =EXP(-6*tt)/10+EXP(-3*tt)*(0.5*tt*COS(5*tt)+tt*SIN(5*tt)-0.05*SIN(5*tt)) -> -0.036413124 | D59: =EXP(-6*tt)*(-1/5*COS(5*tt)+(tt+1)/10) -> 0.0003291400713 | E59: =EXP(-3*tt)*(1.5*tt*COS(5*tt)+tt/2*SIN(5*tt)+0.05*COS(5*tt)-0.05*SIN(5*tt)) -> 0.002877254948 | F59: =EXP(-3*tt)*(0.5*tt*COS(5*tt)+tt*SIN(5*tt)-0.05*SIN(5*tt)) -> -0.03665181673
B60: 1.030835089 | C60: =EXP(-6*tt)/10+EXP(-3*tt)*(0.5*tt*COS(5*tt)+tt*SIN(5*tt)-0.05*SIN(5*tt)) -> -0.03003585878 | D60: =EXP(-6*tt)*(-1/5*COS(5*tt)+(tt+1)/10) -> 0.0002422087176 | E60: =EXP(-3*tt)*(1.5*tt*COS(5*tt)+tt/2*SIN(5*tt)+0.05*COS(5*tt)-0.05*SIN(5*tt)) -> 0.01188049318 | F60: =EXP(-3*tt)*(0.5*tt*COS(5*tt)+tt*SIN(5*tt)-0.05*SIN(5*tt)) -> -0.03024186677
B61: 1.055378782 | C61: =EXP(-6*tt)/10+EXP(-3*tt)*(0.5*tt*COS(5*tt)+tt*SIN(5*tt)-0.05*SIN(5*tt)) -> -0.02373403204 | D61: =EXP(-6*tt)*(-1/5*COS(5*tt)+(tt+1)/10) -> 0.0001752000462 | E61: =EXP(-3*tt)*(1.5*tt*COS(5*tt)+tt/2*SIN(5*tt)+0.05*COS(5*tt)-0.05*SIN(5*tt)) -> 0.01982275192 | F61: =EXP(-3*tt)*(0.5*tt*COS(5*tt)+tt*SIN(5*tt)-0.05*SIN(5*tt)) -> -0.02391183088
B62: 1.079922475 | C62: =EXP(-6*tt)/10+EXP(-3*tt)*(0.5*tt*COS(5*tt)+tt*SIN(5*tt)-0.05*SIN(5*tt)) -> -0.01761515052 | D62: =EXP(-6*tt)*(-1/5*COS(5*tt)+(tt+1)/10) -> 0.0001244707759 | E62: =EXP(-3*tt)*(1.5*tt*COS(5*tt)+tt/2*SIN(5*tt)+0.05*COS(5*tt)-0.05*SIN(5*tt)) -> 0.02666184642 | F62: =EXP(-3*tt)*(0.5*tt*COS(5*tt)+tt*SIN(5*tt)-0.05*SIN(5*tt)) -> -0.01776860295
B63: 1.104466167 | C63: =EXP(-6*tt)/10+EXP(-3*tt)*(0.5*tt*COS(5*tt)+tt*SIN(5*tt)-0.05*SIN(5*tt)) -> -0.01177307667 | D63: =EXP(-6*tt)*(-1/5*COS(5*tt)+(tt+1)/10) -> 8.687682315e-05 | E63: =EXP(-3*tt)*(1.5*tt*COS(5*tt)+tt/2*SIN(5*tt)+0.05*COS(5*tt)-0.05*SIN(5*tt)) -> 0.03238046712 | F63: =EXP(-3*tt)*(0.5*tt*COS(5*tt)+tt*SIN(5*tt)-0.05*SIN(5*tt)) -> -0.0119055165
B64: 1.12900986 | C64: =EXP(-6*tt)/10+EXP(-3*tt)*(0.5*tt*COS(5*tt)+tt*SIN(5*tt)-0.05*SIN(5*tt)) -> -0.006287448476 | D64: =EXP(-6*tt)*(-1/5*COS(5*tt)+(tt+1)/10) -> 5.97349588e-05 | E64: =EXP(-3*tt)*(1.5*tt*COS(5*tt)+tt/2*SIN(5*tt)+0.05*COS(5*tt)-0.05*SIN(5*tt)) -> 0.03698408825 | F64: =EXP(-3*tt)*(0.5*tt*COS(5*tt)+tt*SIN(5*tt)-0.05*SIN(5*tt)) -> -0.006401753018
B65: 1.153553552 | C65: =EXP(-6*tt)/10+EXP(-3*tt)*(0.5*tt*COS(5*tt)+tt*SIN(5*tt)-0.05*SIN(5*tt)) -> -0.00122346493 | D65: =EXP(-6*tt)*(-1/5*COS(5*tt)+(tt+1)/10) -> 4.078095154e-05 | E65: =EXP(-3*tt)*(1.5*tt*COS(5*tt)+tt/2*SIN(5*tt)+0.05*COS(5*tt)-0.05*SIN(5*tt)) -> 0.0404986115 | F65: =EXP(-3*tt)*(0.5*tt*COS(5*tt)+tt*SIN(5*tt)-0.05*SIN(5*tt)) -> -0.001322117486
B66: 1.178097245 | C66: =EXP(-6*tt)/10+EXP(-3*tt)*(0.5*tt*COS(5*tt)+tt*SIN(5*tt)-0.05*SIN(5*tt)) -> 0.003367998596 | D66: =EXP(-6*tt)*(-1/5*COS(5*tt)+(tt+1)/10) -> 2.812625926e-05 | E66: =EXP(-3*tt)*(1.5*tt*COS(5*tt)+tt/2*SIN(5*tt)+0.05*COS(5*tt)-0.05*SIN(5*tt)) -> 0.04296782569 | F66: =EXP(-3*tt)*(0.5*tt*COS(5*tt)+tt*SIN(5*tt)-0.05*SIN(5*tt)) -> 0.003282854762
B67: 1.202640938 | C67: =EXP(-6*tt)/10+EXP(-3*tt)*(0.5*tt*COS(5*tt)+tt*SIN(5*tt)-0.05*SIN(5*tt)) -> 0.007449983915 | D67: =EXP(-6*tt)*(-1/5*COS(5*tt)+(tt+1)/10) -> 2.02148713e-05 | E67: =EXP(-3*tt)*(1.5*tt*COS(5*tt)+tt/2*SIN(5*tt)+0.05*COS(5*tt)-0.05*SIN(5*tt)) -> 0.04445075765 | F67: =EXP(-3*tt)*(0.5*tt*COS(5*tt)+tt*SIN(5*tt)-0.05*SIN(5*tt)) -> 0.007376499022
B68: 1.22718463 | C68: =EXP(-6*tt)/10+EXP(-3*tt)*(0.5*tt*COS(5*tt)+tt*SIN(5*tt)-0.05*SIN(5*tt)) -> 0.01099879362 | D68: =EXP(-6*tt)*(-1/5*COS(5*tt)+(tt+1)/10) -> 1.578150695e-05 | E68: =EXP(-3*tt)*(1.5*tt*COS(5*tt)+tt/2*SIN(5*tt)+0.05*COS(5*tt)-0.05*SIN(5*tt)) -> 0.04501898371 | F68: =EXP(-3*tt)*(0.5*tt*COS(5*tt)+tt*SIN(5*tt)-0.05*SIN(5*tt)) -> 0.01093537119
B69: 1.251728323 | C69: =EXP(-6*tt)/10+EXP(-3*tt)*(0.5*tt*COS(5*tt)+tt*SIN(5*tt)-0.05*SIN(5*tt)) -> 0.01400312655 | D69: =EXP(-6*tt)*(-1/5*COS(5*tt)+(tt+1)/10) -> 1.381204061e-05 | E69: =EXP(-3*tt)*(1.5*tt*COS(5*tt)+tt/2*SIN(5*tt)+0.05*COS(5*tt)-0.05*SIN(5*tt)) -> 0.04475396378 | F69: =EXP(-3*tt)*(0.5*tt*COS(5*tt)+tt*SIN(5*tt)-0.05*SIN(5*tt)) -> 0.01394838869
B70: 1.276272016 | C70: =EXP(-6*tt)/10+EXP(-3*tt)*(0.5*tt*COS(5*tt)+tt*SIN(5*tt)-0.05*SIN(5*tt)) -> 0.01646304661 | D70: =EXP(-6*tt)*(-1/5*COS(5*tt)+(tt+1)/10) -> 1.350674451e-05 | E70: =EXP(-3*tt)*(1.5*tt*COS(5*tt)+tt/2*SIN(5*tt)+0.05*COS(5*tt)-0.05*SIN(5*tt)) -> 0.04374445222 | F70: =EXP(-3*tt)*(0.5*tt*COS(5*tt)+tt*SIN(5*tt)-0.05*SIN(5*tt)) -> 0.01641580413
B71: 1.300815708 | C71: =EXP(-6*tt)/10+EXP(-3*tt)*(0.5*tt*COS(5*tt)+tt*SIN(5*tt)-0.05*SIN(5*tt)) -> 0.01838882569 | D71: =EXP(-6*tt)*(-1/5*COS(5*tt)+(tt+1)/10) -> 1.424671137e-05 | E71: =EXP(-3*tt)*(1.5*tt*COS(5*tt)+tt/2*SIN(5*tt)+0.05*COS(5*tt)-0.05*SIN(5*tt)) -> 0.04208403229 | F71: =EXP(-3*tt)*(0.5*tt*COS(5*tt)+tt*SIN(5*tt)-0.05*SIN(5*tt)) -> 0.01834805224
B72: 1.325359401 | C72: =EXP(-6*tt)/10+EXP(-3*tt)*(0.5*tt*COS(5*tt)+tt*SIN(5*tt)-0.05*SIN(5*tt)) -> 0.019799699 | D72: =EXP(-6*tt)*(-1/5*COS(5*tt)+(tt+1)/10) -> 1.556363665e-05 | E72: =EXP(-3*tt)*(1.5*tt*COS(5*tt)+tt/2*SIN(5*tt)+0.05*COS(5*tt)-0.05*SIN(5*tt)) -> 0.03986881231 | F72: =EXP(-3*tt)*(0.5*tt*COS(5*tt)+tt*SIN(5*tt)-0.05*SIN(5*tt)) -> 0.01976450875
B73: 1.349903093 | C73: =EXP(-6*tt)/10+EXP(-3*tt)*(0.5*tt*COS(5*tt)+tt*SIN(5*tt)-0.05*SIN(5*tt)) -> 0.02072256901 | D73: =EXP(-6*tt)*(-1/5*COS(5*tt)+(tt+1)/10) -> 1.711299634e-05 | E73: =EXP(-3*tt)*(1.5*tt*COS(5*tt)+tt/2*SIN(5*tt)+0.05*COS(5*tt)-0.05*SIN(5*tt)) -> 0.03719531429 | F73: =EXP(-3*tt)*(0.5*tt*COS(5*tt)+tt*SIN(5*tt)-0.05*SIN(5*tt)) -> 0.02069219744
B74: 1.374446786 | C74: =EXP(-6*tt)/10+EXP(-3*tt)*(0.5*tt*COS(5*tt)+tt*SIN(5*tt)-0.05*SIN(5*tt)) -> 0.02119069109 | D74: =EXP(-6*tt)*(-1/5*COS(5*tt)+(tt+1)/10) -> 1.865054774e-05 | E74: =EXP(-3*tt)*(1.5*tt*COS(5*tt)+tt/2*SIN(5*tt)+0.05*COS(5*tt)-0.05*SIN(5*tt)) -> 0.03415857777 | F74: =EXP(-3*tt)*(0.5*tt*COS(5*tt)+tt*SIN(5*tt)-0.05*SIN(5*tt)) -> 0.02116447837
B75: 1.398990479 | C75: =EXP(-6*tt)/10+EXP(-3*tt)*(0.5*tt*COS(5*tt)+tt*SIN(5*tt)-0.05*SIN(5*tt)) -> 0.02124237027 | D75: =EXP(-6*tt)*(-1/5*COS(5*tt)+(tt+1)/10) -> 2.001200043e-05 | E75: =EXP(-3*tt)*(1.5*tt*COS(5*tt)+tt/2*SIN(5*tt)+0.05*COS(5*tt)-0.05*SIN(5*tt)) -> 0.03085049471 | F75: =EXP(-3*tt)*(0.5*tt*COS(5*tt)+tt*SIN(5*tt)-0.05*SIN(5*tt)) -> 0.02121974692
B76: 1.423534171 | C76: =EXP(-6*tt)/10+EXP(-3*tt)*(0.5*tt*COS(5*tt)+tt*SIN(5*tt)-0.05*SIN(5*tt)) -> 0.02091969534 | D76: =EXP(-6*tt)*(-1/5*COS(5*tt)+(tt+1)/10) -> 2.109564945e-05 | E76: =EXP(-3*tt)*(1.5*tt*COS(5*tt)+tt/2*SIN(5*tt)+0.05*COS(5*tt)-0.05*SIN(5*tt)) -> 0.02735838428 | F76: =EXP(-3*tt)*(0.5*tt*COS(5*tt)+tt*SIN(5*tt)-0.05*SIN(5*tt)) -> 0.02090016986
B77: 1.448077864 | C77: =EXP(-6*tt)/10+EXP(-3*tt)*(0.5*tt*COS(5*tt)+tt*SIN(5*tt)-0.05*SIN(5*tt)) -> 0.02026733227 | D77: =EXP(-6*tt)*(-1/5*COS(5*tt)+(tt+1)/10) -> 2.18477272e-05 | E77: =EXP(-3*tt)*(1.5*tt*COS(5*tt)+tt/2*SIN(5*tt)+0.05*COS(5*tt)-0.05*SIN(5*tt)) -> 0.02376381051 | F77: =EXP(-3*tt)*(0.5*tt*COS(5*tt)+tt*SIN(5*tt)-0.05*SIN(5*tt)) -> 0.02025048045
B78: 1.472621556 | C78: =EXP(-6*tt)/10+EXP(-3*tt)*(0.5*tt*COS(5*tt)+tt*SIN(5*tt)-0.05*SIN(5*tt)) -> 0.01933139555 | D78: =EXP(-6*tt)*(-1/5*COS(5*tt)+(tt+1)/10) -> 2.2250211e-05 | E78: =EXP(-3*tt)*(1.5*tt*COS(5*tt)+tt/2*SIN(5*tt)+0.05*COS(5*tt)-0.05*SIN(5*tt)) -> 0.02014164019 | F78: =EXP(-3*tt)*(0.5*tt*COS(5*tt)+tt*SIN(5*tt)-0.05*SIN(5*tt)) -> 0.0193168513
B79: 1.497165249 | C79: =EXP(-6*tt)/10+EXP(-3*tt)*(0.5*tt*COS(5*tt)+tt*SIN(5*tt)-0.05*SIN(5*tt)) -> 0.01815841197 | D79: =EXP(-6*tt)*(-1/5*COS(5*tt)+(tt+1)/10) -> 2.231081697e-05 | E79: =EXP(-3*tt)*(1.5*tt*COS(5*tt)+tt/2*SIN(5*tt)+0.05*COS(5*tt)-0.05*SIN(5*tt)) -> 0.01655933368 | F79: =EXP(-3*tt)*(0.5*tt*COS(5*tt)+tt*SIN(5*tt)-0.05*SIN(5*tt)) -> 0.0181458593
B80: 1.521708942 | C80: =EXP(-6*tt)/10+EXP(-3*tt)*(0.5*tt*COS(5*tt)+tt*SIN(5*tt)-0.05*SIN(5*tt)) -> 0.01679438783 | D80: =EXP(-6*tt)*(-1/5*COS(5*tt)+(tt+1)/10) -> 2.205491369e-05 | E80: =EXP(-3*tt)*(1.5*tt*COS(5*tt)+tt/2*SIN(5*tt)+0.05*COS(5*tt)-0.05*SIN(5*tt)) -> 0.0130764573 | F80: =EXP(-3*tt)*(0.5*tt*COS(5*tt)+tt*SIN(5*tt)-0.05*SIN(5*tt)) -> 0.01678355402
B81: 1.546252634 | C81: =EXP(-6*tt)/10+EXP(-3*tt)*(0.5*tt*COS(5*tt)+tt*SIN(5*tt)-0.05*SIN(5*tt)) -> 0.01528398726 | D81: =EXP(-6*tt)*(-1/5*COS(5*tt)+(tt+1)/10) -> 2.151909943e-05 | E81: =EXP(-3*tt)*(1.5*tt*COS(5*tt)+tt/2*SIN(5*tt)+0.05*COS(5*tt)-0.05*SIN(5*tt)) -> 0.009744402685 | F81: =EXP(-3*tt)*(0.5*tt*COS(5*tt)+tt*SIN(5*tt)-0.05*SIN(5*tt)) -> 0.01527463695
B82: 1.570796327 | C82: =EXP(-6*tt)/10+EXP(-3*tt)*(0.5*tt*COS(5*tt)+tt*SIN(5*tt)-0.05*SIN(5*tt)) -> 0.01366982594 | D82: =EXP(-6*tt)*(-1/5*COS(5*tt)+(tt+1)/10) -> 2.074620233e-05 | E82: =EXP(-3*tt)*(1.5*tt*COS(5*tt)+tt/2*SIN(5*tt)+0.05*COS(5*tt)-0.05*SIN(5*tt)) -> 0.006606295718 | F82: =EXP(-3*tt)*(0.5*tt*COS(5*tt)+tt*SIN(5*tt)-0.05*SIN(5*tt)) -> 0.01366175599
B83: =B82+deltat -> 1.595340019 | C83: =EXP(-6*tt)/10+EXP(-3*tt)*(0.5*tt*COS(5*tt)+tt*SIN(5*tt)-0.05*SIN(5*tt)) -> 0.01199188178 | D83: =EXP(-6*tt)*(-1/5*COS(5*tt)+(tt+1)/10) -> 1.978148144e-05 | E83: =EXP(-3*tt)*(1.5*tt*COS(5*tt)+tt/2*SIN(5*tt)+0.05*COS(5*tt)-0.05*SIN(5*tt)) -> 0.003697075895 | F83: =EXP(-3*tt)*(0.5*tt*COS(5*tt)+tt*SIN(5*tt)-0.05*SIN(5*tt)) -> 0.01198491687
B84: 1.619883712 | C84: =EXP(-6*tt)/10+EXP(-3*tt)*(0.5*tt*COS(5*tt)+tt*SIN(5*tt)-0.05*SIN(5*tt)) -> 0.01028702136 | D84: =EXP(-6*tt)*(-1/5*COS(5*tt)+(tt+1)/10) -> 1.866982743e-05 | E84: =EXP(-3*tt)*(1.5*tt*COS(5*tt)+tt/2*SIN(5*tt)+0.05*COS(5*tt)-0.05*SIN(5*tt)) -> 0.00104372558 | F84: =EXP(-3*tt)*(0.5*tt*COS(5*tt)+tt*SIN(5*tt)-0.05*SIN(5*tt)) -> 0.01028101017
B85: 1.644427405 | C85: =EXP(-6*tt)/10+EXP(-3*tt)*(0.5*tt*COS(5*tt)+tt*SIN(5*tt)-0.05*SIN(5*tt)) -> 0.008588638781 | D85: =EXP(-6*tt)*(-1/5*COS(5*tt)+(tt+1)/10) -> 1.745378317e-05 | E85: =EXP(-3*tt)*(1.5*tt*COS(5*tt)+tt/2*SIN(5*tt)+0.05*COS(5*tt)-0.05*SIN(5*tt)) -> -0.001334372125 | F85: =EXP(-3*tt)*(0.5*tt*COS(5*tt)+tt*SIN(5*tt)-0.05*SIN(5*tt)) -> 0.008583450715
B86: 1.668971097 | C86: =EXP(-6*tt)/10+EXP(-3*tt)*(0.5*tt*COS(5*tt)+tt*SIN(5*tt)-0.05*SIN(5*tt)) -> 0.006926401667 | D86: =EXP(-6*tt)*(-1/5*COS(5*tt)+(tt+1)/10) -> 1.617222614e-05 | E86: =EXP(-3*tt)*(1.5*tt*COS(5*tt)+tt/2*SIN(5*tt)+0.05*COS(5*tt)-0.05*SIN(5*tt)) -> -0.003424968337 | F86: =EXP(-3*tt)*(0.5*tt*COS(5*tt)+tt*SIN(5*tt)-0.05*SIN(5*tt)) -> 0.006921924015
B87: 1.69351479 | C87: =EXP(-6*tt)/10+EXP(-3*tt)*(0.5*tt*COS(5*tt)+tt*SIN(5*tt)-0.05*SIN(5*tt)) -> 0.005326097337 | D87: =EXP(-6*tt)*(-1/5*COS(5*tt)+(tt+1)/10) -> 1.485957507e-05 | E87: =EXP(-3*tt)*(1.5*tt*COS(5*tt)+tt/2*SIN(5*tt)+0.05*COS(5*tt)-0.05*SIN(5*tt)) -> -0.005222397358 | F87: =EXP(-3*tt)*(0.5*tt*COS(5*tt)+tt*SIN(5*tt)-0.05*SIN(5*tt)) -> 0.00532223282
B88: 1.718058482 | C88: =EXP(-6*tt)/10+EXP(-3*tt)*(0.5*tt*COS(5*tt)+tt*SIN(5*tt)-0.05*SIN(5*tt)) -> 0.003809571032 | D88: =EXP(-6*tt)*(-1/5*COS(5*tt)+(tt+1)/10) -> 1.354540335e-05 | E88: =EXP(-3*tt)*(1.5*tt*COS(5*tt)+tt/2*SIN(5*tt)+0.05*COS(5*tt)-0.05*SIN(5*tt)) -> -0.006726960164 | F88: =EXP(-3*tt)*(0.5*tt*COS(5*tt)+tt*SIN(5*tt)-0.05*SIN(5*tt)) -> 0.003806235692
B89: 1.742602175 | C89: =EXP(-6*tt)/10+EXP(-3*tt)*(0.5*tt*COS(5*tt)+tt*SIN(5*tt)-0.05*SIN(5*tt)) -> 0.0023947471 | D89: =EXP(-6*tt)*(-1/5*COS(5*tt)+(tt+1)/10) -> 1.225435971e-05 | E89: =EXP(-3*tt)*(1.5*tt*COS(5*tt)+tt/2*SIN(5*tt)+0.05*COS(5*tt)-0.05*SIN(5*tt)) -> -0.00794426188 | F89: =EXP(-3*tt)*(0.5*tt*COS(5*tt)+tt*SIN(5*tt)-0.05*SIN(5*tt)) -> 0.002391868476
B90: 1.767145868 | C90: =EXP(-6*tt)/10+EXP(-3*tt)*(0.5*tt*COS(5*tt)+tt*SIN(5*tt)-0.05*SIN(5*tt)) -> 0.001095723382 | D90: =EXP(-6*tt)*(-1/5*COS(5*tt)+(tt+1)/10) -> 1.100631337e-05 | E90: =EXP(-3*tt)*(1.5*tt*COS(5*tt)+tt/2*SIN(5*tt)+0.05*COS(5*tt)-0.05*SIN(5*tt)) -> -0.008884521427 | F90: =EXP(-3*tt)*(0.5*tt*COS(5*tt)+tt*SIN(5*tt)-0.05*SIN(5*tt)) -> 0.001093238934
B91: 1.79168956 | C91: =EXP(-6*tt)/10+EXP(-3*tt)*(0.5*tt*COS(5*tt)+tt*SIN(5*tt)-0.05*SIN(5*tt)) -> -7.707129468e-05 | D91: =EXP(-6*tt)*(-1/5*COS(5*tt)+(tt+1)/10) -> 9.8166557e-06 | E91: =EXP(-3*tt)*(1.5*tt*COS(5*tt)+tt/2*SIN(5*tt)+0.05*COS(5*tt)-0.05*SIN(5*tt)) -> -0.009561869995 | F91: =EXP(-3*tt)*(0.5*tt*COS(5*tt)+tt*SIN(5*tt)-0.05*SIN(5*tt)) -> -7.921554095e-05
B92: 1.816233253 | C92: =EXP(-6*tt)/10+EXP(-3*tt)*(0.5*tt*COS(5*tt)+tt*SIN(5*tt)-0.05*SIN(5*tt)) -> -0.001116666728 | D92: =EXP(-6*tt)*(-1/5*COS(5*tt)+(tt+1)/10) -> 8.69670362e-06 | E92: =EXP(-3*tt)*(1.5*tt*COS(5*tt)+tt/2*SIN(5*tt)+0.05*COS(5*tt)-0.05*SIN(5*tt)) -> -0.009993653292 | F92: =EXP(-3*tt)*(0.5*tt*COS(5*tt)+tt*SIN(5*tt)-0.05*SIN(5*tt)) -> -0.001118517357
B93: 1.840776945 | C93: =EXP(-6*tt)/10+EXP(-3*tt)*(0.5*tt*COS(5*tt)+tt*SIN(5*tt)-0.05*SIN(5*tt)) -> -0.002019298177 | D93: =EXP(-6*tt)*(-1/5*COS(5*tt)+(tt+1)/10) -> 7.654161344e-06 | E93: =EXP(-3*tt)*(1.5*tt*COS(5*tt)+tt/2*SIN(5*tt)+0.05*COS(5*tt)-0.05*SIN(5*tt)) -> -0.01019975076 | F93: =EXP(-3*tt)*(0.5*tt*COS(5*tt)+tt*SIN(5*tt)-0.05*SIN(5*tt)) -> -0.002020895396
B94: 1.865320638 | C94: =EXP(-6*tt)/10+EXP(-3*tt)*(0.5*tt*COS(5*tt)+tt*SIN(5*tt)-0.05*SIN(5*tt)) -> -0.002784120214 | D94: =EXP(-6*tt)*(-1/5*COS(5*tt)+(tt+1)/10) -> 6.693606845e-06 | E94: =EXP(-3*tt)*(1.5*tt*COS(5*tt)+tt/2*SIN(5*tt)+0.05*COS(5*tt)-0.05*SIN(5*tt)) -> -0.01020192305 | F94: =EXP(-3*tt)*(0.5*tt*COS(5*tt)+tt*SIN(5*tt)-0.05*SIN(5*tt)) -> -0.002785498722
B95: 1.889864331 | C95: =EXP(-6*tt)/10+EXP(-3*tt)*(0.5*tt*COS(5*tt)+tt*SIN(5*tt)-0.05*SIN(5*tt)) -> -0.003412896929 | D95: =EXP(-6*tt)*(-1/5*COS(5*tt)+(tt+1)/10) -> 5.816977787e-06 | E95: =EXP(-3*tt)*(1.5*tt*COS(5*tt)+tt/2*SIN(5*tt)+0.05*COS(5*tt)-0.05*SIN(5*tt)) -> -0.01002319724 | F95: =EXP(-3*tt)*(0.5*tt*COS(5*tt)+tt*SIN(5*tt)-0.05*SIN(5*tt)) -> -0.003414086674
B96: 1.914408023 | C96: =EXP(-6*tt)/10+EXP(-3*tt)*(0.5*tt*COS(5*tt)+tt*SIN(5*tt)-0.05*SIN(5*tt)) -> -0.00390967721 | D96: =EXP(-6*tt)*(-1/5*COS(5*tt)+(tt+1)/10) -> 5.024038538e-06 | E96: =EXP(-3*tt)*(1.5*tt*COS(5*tt)+tt/2*SIN(5*tt)+0.05*COS(5*tt)-0.05*SIN(5*tt)) -> -0.009687297421 | F96: =EXP(-3*tt)*(0.5*tt*COS(5*tt)+tt*SIN(5*tt)-0.05*SIN(5*tt)) -> -0.003910704041
B97: 1.938951716 | C97: =EXP(-6*tt)/10+EXP(-3*tt)*(0.5*tt*COS(5*tt)+tt*SIN(5*tt)-0.05*SIN(5*tt)) -> -0.004280463133 | D97: =EXP(-6*tt)*(-1/5*COS(5*tt)+(tt+1)/10) -> 4.312815561e-06 | E97: =EXP(-3*tt)*(1.5*tt*COS(5*tt)+tt/2*SIN(5*tt)+0.05*COS(5*tt)-0.05*SIN(5*tt)) -> -0.009218126406 | F97: =EXP(-3*tt)*(0.5*tt*COS(5*tt)+tt*SIN(5*tt)-0.05*SIN(5*tt)) -> -0.004281349358
B98: 1.963495408 | C98: =EXP(-6*tt)/10+EXP(-3*tt)*(0.5*tt*COS(5*tt)+tt*SIN(5*tt)-0.05*SIN(5*tt)) -> -0.004532878674 | D98: =EXP(-6*tt)*(-1/5*COS(5*tt)+(tt+1)/10) -> 3.679993071e-06 | E98: =EXP(-3*tt)*(1.5*tt*COS(5*tt)+tt/2*SIN(5*tt)+0.05*COS(5*tt)-0.05*SIN(5*tt)) -> -0.00863930287 | F98: =EXP(-3*tt)*(0.5*tt*COS(5*tt)+tt*SIN(5*tt)-0.05*SIN(5*tt)) -> -0.004533643546
B99: 1.988039101 | C99: =EXP(-6*tt)/10+EXP(-3*tt)*(0.5*tt*COS(5*tt)+tt*SIN(5*tt)-0.05*SIN(5*tt)) -> -0.004675845136 | D99: =EXP(-6*tt)*(-1/5*COS(5*tt)+(tt+1)/10) -> 3.121264493e-06 | E99: =EXP(-3*tt)*(1.5*tt*COS(5*tt)+tt/2*SIN(5*tt)+0.05*COS(5*tt)-0.05*SIN(5*tt)) -> -0.007973756379 | F99: =EXP(-3*tt)*(0.5*tt*COS(5*tt)+tt*SIN(5*tt)-0.05*SIN(5*tt)) -> -0.004676505272
B100: 2.012582794 | C100: =EXP(-6*tt)/10+EXP(-3*tt)*(0.5*tt*COS(5*tt)+tt*SIN(5*tt)-0.05*SIN(5*tt)) -> -0.00471926881 | D100: =EXP(-6*tt)*(-1/5*COS(5*tt)+(tt+1)/10) -> 2.631638011e-06 | E100: =EXP(-3*tt)*(1.5*tt*COS(5*tt)+tt/2*SIN(5*tt)+0.05*COS(5*tt)-0.05*SIN(5*tt)) -> -0.007243381534 | F100: =EXP(-3*tt)*(0.5*tt*COS(5*tt)+tt*SIN(5*tt)-0.05*SIN(5*tt)) -> -0.004719838552
B101: 2.037126486 | C101: =EXP(-6*tt)/10+EXP(-3*tt)*(0.5*tt*COS(5*tt)+tt*SIN(5*tt)-0.05*SIN(5*tt)) -> -0.004673745499 | D101: =EXP(-6*tt)*(-1/5*COS(5*tt)+(tt+1)/10) -> 2.205696687e-06 | E101: =EXP(-3*tt)*(1.5*tt*COS(5*tt)+tt/2*SIN(5*tt)+0.05*COS(5*tt)-0.05*SIN(5*tt)) -> -0.006468751054 | F101: =EXP(-3*tt)*(0.5*tt*COS(5*tt)+tt*SIN(5*tt)-0.05*SIN(5*tt)) -> -0.004674237226
B102: 2.061670179 | C102: =EXP(-6*tt)/10+EXP(-3*tt)*(0.5*tt*COS(5*tt)+tt*SIN(5*tt)-0.05*SIN(5*tt)) -> -0.004550285672 | D102: =EXP(-6*tt)*(-1/5*COS(5*tt)+(tt+1)/10) -> 1.837815085e-06 | E102: =EXP(-3*tt)*(1.5*tt*COS(5*tt)+tt/2*SIN(5*tt)+0.05*COS(5*tt)-0.05*SIN(5*tt)) -> -0.005668886549 | F102: =EXP(-3*tt)*(0.5*tt*COS(5*tt)+tt*SIN(5*tt)-0.05*SIN(5*tt)) -> -0.004550710065
B103: 2.086213872 | C103: =EXP(-6*tt)/10+EXP(-3*tt)*(0.5*tt*COS(5*tt)+tt*SIN(5*tt)-0.05*SIN(5*tt)) -> -0.004360063168 | D103: =EXP(-6*tt)*(-1/5*COS(5*tt)+(tt+1)/10) -> 1.522335431e-06 | E103: =EXP(-3*tt)*(1.5*tt*COS(5*tt)+tt/2*SIN(5*tt)+0.05*COS(5*tt)-0.05*SIN(5*tt)) -> -0.004861084706 | F103: =EXP(-3*tt)*(0.5*tt*COS(5*tt)+tt*SIN(5*tt)-0.05*SIN(5*tt)) -> -0.004360429448
B104: 2.110757564 | C104: =EXP(-6*tt)/10+EXP(-3*tt)*(0.5*tt*COS(5*tt)+tt*SIN(5*tt)-0.05*SIN(5*tt)) -> -0.004114189571 | D104: =EXP(-6*tt)*(-1/5*COS(5*tt)+(tt+1)/10) -> 1.253707002e-06 | E104: =EXP(-3*tt)*(1.5*tt*COS(5*tt)+tt/2*SIN(5*tt)+0.05*COS(5*tt)-0.05*SIN(5*tt)) -> -0.004060795838 | F104: =EXP(-3*tt)*(0.5*tt*COS(5*tt)+tt*SIN(5*tt)-0.05*SIN(5*tt)) -> -0.004114505696
B105: 2.135301257 | C105: =EXP(-6*tt)/10+EXP(-3*tt)*(0.5*tt*COS(5*tt)+tt*SIN(5*tt)-0.05*SIN(5*tt)) -> -0.003823515636 | D105: =EXP(-6*tt)*(-1/5*COS(5*tt)+(tt+1)/10) -> 1.02659278e-06 | E105: =EXP(-3*tt)*(1.5*tt*COS(5*tt)+tt/2*SIN(5*tt)+0.05*COS(5*tt)-0.05*SIN(5*tt)) -> -0.003281551045 | F105: =EXP(-3*tt)*(0.5*tt*COS(5*tt)+tt*SIN(5*tt)-0.05*SIN(5*tt)) -> -0.003823788473
B106: 2.159844949 | C106: =EXP(-6*tt)/10+EXP(-3*tt)*(0.5*tt*COS(5*tt)+tt*SIN(5*tt)-0.05*SIN(5*tt)) -> -0.00349846043 | D106: =EXP(-6*tt)*(-1/5*COS(5*tt)+(tt+1)/10) -> 8.359475407e-07 | E106: =EXP(-3*tt)*(1.5*tt*COS(5*tt)+tt/2*SIN(5*tt)+0.05*COS(5*tt)-0.05*SIN(5*tt)) -> -0.00253493377 | F106: =EXP(-3*tt)*(0.5*tt*COS(5*tt)+tt*SIN(5*tt)-0.05*SIN(5*tt)) -> -0.003498695906

Sheet Sheet2

Sheet Sheet3
